[Event "Lueneburg Open-A 2019"]
[Site "Lueneburg"]
[Date "2019.08.07"]
[Round "5.27"]
[White "Joppien, Arne"]
[Black "Grote, Dirk"]
[Result "0-1"]
[ECO "D02"]
[WhiteElo "1940"]
[BlackElo "2037"]
[Annotator "NA"]
[PlyCount "112"]
[EventDate "2019.08.03"]
[EventType "swiss"]
[EventCountry "GER"]
[SourceTitle "playchess.com"]
[Source "ChessBase"]
[SourceQuality "1"]
[TimeControl "40/5400+30:1800+30"]

1. d4 {[%emt 0:00:00]} d5 {[%emt 0:00:00]} 2. Nf3 {[%emt 0:00:11]} Nf6 {[%emt 0:00:00]} 3. Bf4 {[%emt 0:00:08]} e6 {[%emt 0:00:23]} 4. e3 {[%emt 0:00:12]} Bd6 {[%emt 0:00:22]} 5. Bg3 {[%emt 0:00:52]} O-O {[%emt 0:00:21]} 6. c4 {[%emt 0:01:41]} c5 {[%emt 0:01:38]} 7. dxc5 {[%emt 0:05:31]} Bxc5 {[%emt 0:01:40]} 8. cxd5 {[%emt 0:00:46]} Qxd5 {[%emt 0:16:03]} 9. Nc3 {[%emt 0:01:16]} Bb4 {[%emt 0:08:01]} 10. Qc2 {[%emt 0:05:36]} Bxc3+ {[%emt 0:09:28]} 11. bxc3 {[%emt 0:02:41]} b6 {[%emt 0:04:56]} 12. Rd1 {[%emt 0:04:21]} Qa5 {[%emt 0:01:01]} 13. Bd3 {[%emt 0:00:38]} Ba6 {[%emt 0:00:45]} 14. O-O {[%emt 0:03:25]} Nc6 {[%emt 0:08:40]} 15. Nd4 {[%emt 0:11:29]} Rac8 {[%emt 0:02:01]} 16. Nb3 {[%emt 0:15:02]} Bxd3 {[%emt 0:04:05]} 17. Rxd3 {[%emt 0:01:39]} Qa6 {[%emt 0:00:33]} 18. Qe2 {[%emt 0:05:06]} Ne4 {[%emt 0:02:21]} 19. Rc1 {[%emt 0:05:17]} Nxg3 {[%emt 0:16:56]} 20. hxg3 {[%emt 0:00:25]} Ne5 {[%emt 0:00:13]} 21. Rd2 {[%emt 0:00:49]} Qxe2 {[%emt 0:00:05]} 22. Rxe2 {[%emt 0:00:05]} Rfd8 {[%emt 0:21:28]} 23. Rd2 {[%emt 0:04:47]} Rxd2 {[%emt 0:00:00]} 24. Nxd2 {[%emt 0:00:06]} Nd3 {[%emt 0:00:00]} 25. Rc2 {[%emt 0:00:11]} Kf8 {[%emt 0:00:00]} 26. Kf1 {[%emt 0:02:49]} Ke7 {[%emt 0:00:00]} 27. Ke2 {[%emt 0:00:48]} Nb4 {[%emt 0:00:00]} 28. Rb2 {[%emt 0:01:06]} Nd5 {[%emt 0:00:00]} 29. c4 {[%emt 0:01:15]} Nc3+ {[%emt 0:00:00]} 30. Ke1 {[%emt 0:08:32]} Rc7 {[%emt 0:00:00]} 31. Rc2 {[%emt 0:01:48]} Na4 {[%emt 0:00:00]} 32. Kd1 {[%emt 0:03:26]} h5 {[%emt 0:00:00]} 33. Nf3 {[%emt 0:03:01]} Rxc4 {[%emt 0:00:00]} 34. Ne5 {[%emt 0:02:51]} Rxc2 {[%emt 0:00:00]} 35. Kxc2 {[%emt 0:00:02]} a6 {[%emt 0:00:00]} 36. f3 {[%emt 0:01:45]} Nc5 {[%emt 0:00:58]} 37. Kc3 {[%emt 0:00:27]} f6 {[%emt 0:00:46]} 38. Ng6+ {[%emt 0:03:21]} Kf7 {[%emt 0:00:43]} 39. Nf4 {[%emt 0:00:06]} g6 {[%emt 0:03:22]} 40. Kb4 {[%emt 0:00:39]} e5 {[%emt 0:01:26]} 41. Nd5 {[%emt 0:30:28]} Nd3+ {[%emt 0:06:01]} 42. Ka4 {[%emt 0:00:00]} Ne1 {[%emt 0:05:30]} 43. Nxb6 {[%emt 0:00:00]} Nxg2 {[%emt 0:00:04]} 44. Nc4 {[%emt 0:00:00]} g5 {[%emt 0:02:17]} 45. Ka5 {[%emt 0:00:00]} h4 {[%emt 0:00:07]} 46. gxh4 {[%emt 0:00:00]} gxh4 {[%emt 0:00:04]} 47. Nd2 {[%emt 0:00:00]} h3 {[%emt 0:10:10]} 48. Ne4 {[%emt 0:00:00]} h2 {[%emt 0:00:54]} 49. Nf2 {[%emt 0:00:00]} Nxe3 {[%emt 0:00:34]} 50. Kxa6 {[%emt 0:00:00]} f5 {[%emt 0:00:36]} 51. a4 {[%emt 0:00:00]} e4 {[%emt 0:00:29]} 52. fxe4 {[%emt 0:00:00]} fxe4 {[%emt 0:00:05]} 53. Kb5 {[%emt 0:00:00]} Nd1 {[%emt 0:00:24]} 54. Nxd1 {[%emt 0:03:13]} h1=Q {[%emt 0:00:18]} 55. Nc3 {[%emt 0:00:09]} e3 {[%emt 0:00:46]} 56. a5 {[%emt 0:00:09]} Qb7+ {[%emt 0:00:35]} 0-1

[Event "Lueneburg Open-A 2019"]
[Site "Lueneburg"]
[Date "2019.08.07"]
[Round "5.28"]
[White "Beuter, Christof"]
[Black "Kosanke, Stefan"]
[Result "1-0"]
[ECO "C19"]
[WhiteElo "1930"]
[BlackElo "2029"]
[Annotator "NA"]
[PlyCount "89"]
[EventDate "2019.08.03"]
[EventType "swiss"]
[EventCountry "GER"]
[SourceTitle "playchess.com"]
[Source "ChessBase"]
[SourceQuality "1"]
[TimeControl "40/5400+30:1800+30"]

1. e4 {[%emt 0:00:00]} e6 {[%emt 0:00:00]} 2. d4 {[%emt 0:00:00]} d5 {[%emt 0:00:01]} 3. Nc3 {[%emt 0:00:00]} Bb4 {[%emt 0:00:36]} 4. e5 {[%emt 0:00:05]} c5 {[%emt 0:00:16]} 5. a3 {[%emt 0:00:10]} Bxc3+ {[%emt 0:00:28]} 6. bxc3 {[%emt 0:00:10]} Nc6 {[%emt 0:00:34]} 7. Nf3 {[%emt 0:00:23]} Nge7 {[%emt 0:01:07]} 8. Bd3 {[%emt 0:01:07]} c4 {[%emt 0:03:14]} 9. Be2 {[%emt 0:01:18]} Qa5 {[%emt 0:06:19]} 10. O-O {[%emt 0:05:48]} Bd7 {[%emt 0:00:52]} 11. h4 {[%emt 0:06:53]} O-O-O {[%emt 0:09:11]} 12. Re1 {[%emt 0:03:17]} Nf5 {[%emt 0:06:10]} 13. Bd2 {[%emt 0:02:39]} Rdg8 {[%emt 0:05:54]} 14. h5 {[%emt 0:03:47]} h6 {[%emt 0:05:21]} 15. Nh2 {[%emt 0:03:12]} Be8 {[%emt 0:12:53]} 16. Qc1 {[%emt 0:07:19]} Nd8 {[%emt 0:09:53]} 17. Rb1 {[%emt 0:06:42]} Qc7 {[%emt 0:02:21]} 18. Bf4 {[%emt 0:02:50]} Qe7 {[%emt 0:05:11]} 19. g3 {[%emt 0:09:47]} f6 {[%emt 0:05:42]} 20. Bf3 {[%emt 0:02:30]} Qd7 {[%emt 0:03:30]} 21. exf6 {[%emt 0:05:47]} gxf6 {[%emt 0:00:41]} 22. a4 {[%emt 0:01:42]} Nh4 {[%emt 0:06:12]} 23. Bd1 {[%emt 0:09:05]} Nf7 {[%emt 0:04:26]} 24. Qb2 {[%emt 0:06:57]} b6 {[%emt 0:02:46]} 25. Qb5 {[%emt 0:09:33]} Qb7 {[%emt 0:01:21]} 26. Qb4 {[%emt 0:00:44]} e5 {[%emt 0:01:05]} 27. dxe5 {[%emt 0:03:42]} fxe5 {[%emt 0:00:59]} 28. Bxe5 {[%emt 0:01:57]} Nxe5 {[%emt 0:00:21]} 29. Rxe5 {[%emt 0:00:21]} d4 {[%emt 0:00:33]} 30. Qxc4+ {[%emt 0:00:27]} Kb8 {[%emt 0:00:40]} 31. Qd5 {[%emt 0:00:42]} Bc6 {[%emt 0:02:07]} 32. Qd6+ {[%emt 0:01:04]} Ka8 {[%emt 0:00:16]} 33. Re7 {[%emt 0:01:19]} Bd7 {[%emt 0:01:21]} 34. Nf3 {[%emt 0:02:17]} Nxf3+ {[%emt 0:00:19]} 35. Bxf3 {[%emt 0:00:07]} Qxf3 {[%emt 0:01:05]} 36. Rxd7 {[%emt 0:00:08]} Rb8 {[%emt 0:01:06]} 37. cxd4 {[%emt 0:01:19]} Rhf8 {[%emt 0:00:32]} 38. Qd5+ {[%emt 0:01:10]} Qxd5 {[%emt 0:00:12]} 39. Rxd5 {[%emt 0:00:05]} Rbc8 {[%emt 0:00:21]} 40. Rc1 {[%emt 0:00:42]} Rc4 {[%emt 0:00:39]} 41. a5 {[%emt 0:30:41]} bxa5 {[%emt 0:30:25]} 42. Rxa5 {[%emt 0:00:16]} Rxd4 {[%emt 0:00:10]} 43. Rca1 {[%emt 0:01:34]} Rd2 {[%emt 0:00:43]} 44. Rxa7+ {[%emt 0:00:13]} Kb8 {[%emt 0:00:01]} 45. Ra8+ {[%emt 0:00:08]} 1-0

[Event "Lueneburg Open-A 2019"]
[Site "Lueneburg"]
[Date "2019.08.07"]
[Round "5.29"]
[White "Wobbe, Sven"]
[Black "Doederlein, Etienne"]
[Result "1-0"]
[ECO "B12"]
[WhiteElo "2019"]
[BlackElo "1868"]
[Annotator "NA"]
[PlyCount "27"]
[EventDate "2019.08.03"]
[EventType "swiss"]
[EventCountry "GER"]
[SourceTitle "playchess.com"]
[Source "ChessBase"]
[SourceQuality "1"]
[TimeControl "40/5400+30:1800+30"]

1. e4 {[%emt 0:00:00]} c6 {[%emt 0:00:00]} 2. d4 {[%emt 0:00:34]} d5 {[%emt 0:00:00]} 3. e5 {[%emt 0:00:44]} c5 {[%emt 0:00:00]} 4. dxc5 {[%emt 0:00:45]} Nc6 {[%emt 0:00:00]} 5. Nf3 {[%emt 0:02:26]} Bg4 {[%emt 0:00:56]} 6. Nbd2 {[%emt 0:02:16]} e6 {[%emt 0:00:08]} 7. h3 {[%emt 0:07:36]} Bxf3 {[%emt 0:00:16]} 8. Nxf3 {[%emt 0:00:13]} Bxc5 {[%emt 0:00:01]} 9. Bd3 {[%emt 0:02:23]} Nge7 {[%emt 0:00:11]} 10. O-O {[%emt 0:01:50]} O-O {[%emt 0:00:08]} 11. Bxh7+ {[%emt 0:09:40]} Kxh7 {[%emt 0:00:02]} 12. Ng5+ {[%emt 0:00:12]} Kg6 {[%emt 0:00:00]} 13. Qg4 {[%emt 0:14:14]} f5 {[%emt 0:00:03]} 14. exf6 {[%emt 0:00:36]} 1-0

[Event "Lueneburg Open-A 2019"]
[Site "Lueneburg"]
[Date "2019.08.07"]
[Round "5.30"]
[White "Anderberg, Peter"]
[Black "Rothenberg, Jannik"]
[Result "1-0"]
[ECO "A43"]
[WhiteElo "2014"]
[BlackElo "1859"]
[Annotator "NA"]
[PlyCount "63"]
[EventDate "2019.08.03"]
[EventType "swiss"]
[EventCountry "GER"]
[SourceTitle "playchess.com"]
[Source "ChessBase"]
[SourceQuality "1"]
[TimeControl "40/5400+30:1800+30"]

1. d4 {[%emt 0:05:52]} c5 {[%emt 0:00:00]} 2. d5 {[%emt 0:00:22]} d6 {[%emt 0:00:00]} 3. c4 {[%emt 0:00:48]} g6 {[%emt 0:00:16]} 4. e4 {[%emt 0:01:04]} Bg7 {[%emt 0:00:18]} 5. Qc2 {[%emt 0:01:20]} e6 {[%emt 0:00:35]} 6. Nf3 {[%emt 0:02:26]} Ne7 {[%emt 0:01:14]} 7. Nc3 {[%emt 0:02:33]} O-O {[%emt 0:00:47]} 8. Bg5 {[%emt 0:08:12]} exd5 {[%emt 0:03:06]} 9. Nxd5 {[%emt 1:11:53]} Nbc6 {[%emt 0:05:53]} 10. Nf6+ {[%emt 0:00:00]} Kh8 {[%emt 0:01:35]} 11. O-O-O {[%emt 0:00:00]} Qa5 {[%emt 0:34:40]} 12. a3 {[%emt 0:00:00]} Be6 {[%emt 0:06:26]} 13. h4 {[%emt 0:00:00]} h5 {[%emt 0:02:05]} 14. Rxd6 {[%emt 0:00:00]} Rad8 {[%emt 0:03:13]} 15. Rxd8 {[%emt 0:00:00]} Rxd8 {[%emt 0:00:19]} 16. Be2 {[%emt 0:00:00]} Qc7 {[%emt 0:08:23]} 17. Nd5 {[%emt 0:00:00]} Qd7 {[%emt 0:03:30]} 18. Rd1 {[%emt 0:00:00]} Bxd5 {[%emt 0:00:44]} 19. exd5 {[%emt 0:00:00]} Nd4 {[%emt 0:01:01]} 20. Nxd4 {[%emt 0:00:00]} Bxd4 {[%emt 0:00:24]} 21. Bxh5 {[%emt 0:00:00]} Re8 {[%emt 0:06:22]} 22. Bf3 {[%emt 0:00:00]} Nf5 {[%emt 0:00:21]} 23. g4 {[%emt 0:00:00]} Nd6 {[%emt 0:00:33]} 24. h5 {[%emt 0:00:00]} gxh5 {[%emt 0:01:36]} 25. Rxd4 {[%emt 0:00:00]} cxd4 {[%emt 0:01:30]} 26. Bf6+ {[%emt 0:00:00]} Kg8 {[%emt 0:00:14]} 27. Qd2 {[%emt 0:00:00]} Ne4 {[%emt 0:01:51]} 28. Bxe4 {[%emt 0:00:00]} Qxg4 {[%emt 0:00:13]} 29. f3 {[%emt 0:00:00]} Qg1+ {[%emt 0:02:33]} 30. Kc2 {[%emt 0:00:00]} Rxe4 {[%emt 0:00:43]} 31. fxe4 {[%emt 0:00:40]} Qg6 {[%emt 0:01:35]} 32. Qg5 {[%emt 0:01:17]} 1-0

[Event "Lueneburg Open-A 2019"]
[Site "Lueneburg"]
[Date "2019.08.07"]
[Round "5.31"]
[White "Ziese, Gerhard"]
[Black "Reuker, Matthias"]
[Result "1/2-1/2"]
[ECO "D30"]
[WhiteElo "1897"]
[BlackElo "2012"]
[Annotator "NA"]
[PlyCount "104"]
[EventDate "2019.08.03"]
[EventType "swiss"]
[EventCountry "GER"]
[SourceTitle "playchess.com"]
[Source "ChessBase"]
[SourceQuality "1"]
[TimeControl "40/5400+30:1800+30"]

1. d4 {[%emt 0:00:00]} Nf6 {[%emt 0:01:42]} 2. c4 {[%emt 0:00:00]} e6 {[%emt 0:00:06]} 3. Nf3 {[%emt 0:00:00]} d5 {[%emt 0:00:20]} 4. e3 {[%emt 0:00:53]} Nbd7 {[%emt 0:02:23]} 5. Bd3 {[%emt 0:00:35]} c5 {[%emt 0:02:26]} 6. O-O {[%emt 0:01:22]} dxc4 {[%emt 0:00:37]} 7. Bxc4 {[%emt 0:00:22]} Qc7 {[%emt 0:00:51]} 8. Qe2 {[%emt 0:01:02]} a6 {[%emt 0:00:41]} 9. a4 {[%emt 0:02:55]} Be7 {[%emt 0:01:53]} 10. Nc3 {[%emt 0:00:49]} O-O {[%emt 0:00:25]} 11. e4 {[%emt 0:04:26]} cxd4 {[%emt 0:01:19]} 12. Nxd4 {[%emt 0:00:35]} b6 {[%emt 0:04:38]} 13. Bxe6 {[%emt 0:07:44]} fxe6 {[%emt 0:01:18]} 14. Nxe6 {[%emt 0:00:09]} Qc6 {[%emt 0:01:54]} 15. Nxf8 {[%emt 0:00:23]} Nxf8 {[%emt 0:01:12]} 16. Bf4 {[%emt 0:06:29]} Bb7 {[%emt 0:02:23]} 17. Rac1 {[%emt 0:03:33]} Qe6 {[%emt 0:05:52]} 18. f3 {[%emt 0:03:42]} Ng6 {[%emt 0:03:16]} 19. Be3 {[%emt 0:00:51]} Ne5 {[%emt 0:04:22]} 20. Rfd1 {[%emt 0:01:34]} Rc8 {[%emt 0:02:04]} 21. Nd5 {[%emt 0:05:49]} Bd8 {[%emt 0:13:38]} 22. Rxc8 {[%emt 0:03:52]} Bxc8 {[%emt 0:00:28]} 23. Nf4 {[%emt 0:05:43]} Qe8 {[%emt 0:04:30]} 24. Qc2 {[%emt 0:01:27]} Bd7 {[%emt 0:02:51]} 25. b3 {[%emt 0:01:05]} b5 {[%emt 0:03:41]} 26. axb5 {[%emt 0:01:05]} Bxb5 {[%emt 0:00:16]} 27. Qc8 {[%emt 0:02:30]} Nc6 {[%emt 0:09:03]} 28. e5 {[%emt 0:14:41]} Ba5 {[%emt 0:00:38]} 29. Qxe8+ {[%emt 0:03:38]} Nxe8 {[%emt 0:00:05]} 30. e6 {[%emt 0:01:35]} Nc7 {[%emt 0:05:31]} 31. h4 {[%emt 0:01:34]} g6 {[%emt 0:04:11]} 32. Bc5 {[%emt 0:01:33]} Bb4 {[%emt 0:03:06]} 33. Bxb4 {[%emt 0:00:43]} Nxb4 {[%emt 0:00:04]} 34. Rd8+ {[%emt 0:06:59]} Ne8 {[%emt 0:01:07]} 35. Nd5 {[%emt 0:03:15]} Nxd5 {[%emt 0:00:11]} 36. Rxd5 {[%emt 0:00:03]} Kf8 {[%emt 0:01:00]} 37. Rd7 {[%emt 0:00:48]} Ng7 {[%emt 0:05:45]} 38. Rf7+ {[%emt 0:02:41]} Kg8 {[%emt 0:00:06]} 39. Rf6 {[%emt 0:00:59]} Nh5 {[%emt 0:05:05]} 40. Rf7 {[%emt 0:00:08]} Ng7 {[%emt 0:00:49]} 41. Rf6 {[%emt 0:30:09]} Ne8 {[%emt 0:32:35]} 42. Rf7 {[%emt 0:00:20]} Nd6 {[%emt 0:03:27]} 43. Ra7 {[%emt 0:02:23]} Nf5 {[%emt 0:01:57]} 44. h5 {[%emt 0:02:54]} gxh5 {[%emt 0:00:00]} 45. Rd7 {[%emt 0:00:00]} Ng7 {[%emt 0:00:00]} 46. Rd8+ {[%emt 0:00:00]} Ne8 {[%emt 0:00:00]} 47. Rd7 {[%emt 0:00:00]} h6 {[%emt 0:00:00]} 48. Kh2 {[%emt 0:00:00]} Ng7 {[%emt 0:00:00]} 49. Rd8+ {[%emt 0:00:00]} Kh7 {[%emt 0:00:00]} 50. e7 {[%emt 0:00:00]} Kg6 {[%emt 0:00:00]} 51. Rf8 {[%emt 0:00:00]} Ne8 {[%emt 0:05:44]} 52. Kh3 {[%emt 0:12:42]} Ng7 1/2-1/2

[Event "Lueneburg Open-A 2019"]
[Site "Lueneburg"]
[Date "2019.08.07"]
[Round "5.32"]
[White "Darpan, Inani"]
[Black "Hommer, Jeremy"]
[Result "1/2-1/2"]
[ECO "C10"]
[WhiteElo "1956"]
[BlackElo "2083"]
[Annotator "NA"]
[PlyCount "62"]
[EventDate "2019.08.03"]
[EventType "swiss"]
[EventCountry "GER"]
[SourceTitle "playchess.com"]
[Source "ChessBase"]
[SourceQuality "1"]
[TimeControl "40/5400+30:1800+30"]

1. e4 {[%emt 1:30:30]} e6 {[%emt 0:00:00]} 2. d4 {[%emt 0:00:30]} d5 {[%emt 0:00:00]} 3. Nd2 {[%emt 0:00:30]} dxe4 {[%emt 0:01:36]} 4. Nxe4 {[%emt 0:00:30]} Bd7 {[%emt 0:00:12]} 5. Nf3 {[%emt 0:00:30]} Bc6 {[%emt 0:00:11]} 6. Ng3 {[%emt 0:00:30]} Nd7 {[%emt 0:04:27]} 7. Bd3 {[%emt 0:00:30]} Ngf6 {[%emt 0:02:03]} 8. Qe2 {[%emt 0:00:30]} Bxf3 {[%emt 0:02:31]} 9. Qxf3 {[%emt 0:00:30]} c6 {[%emt 0:00:19]} 10. c3 {[%emt 0:00:30]} Be7 {[%emt 0:06:01]} 11. a4 {[%emt 0:00:30]} O-O {[%emt 0:10:37]} 12. O-O {[%emt 0:00:30]} Rc8 {[%emt 0:03:33]} 13. a5 {[%emt 0:00:30]} Nd5 {[%emt 0:04:39]} 14. Re1 {[%emt 0:00:30]} N7f6 {[%emt 0:09:26]} 15. Bd2 {[%emt 0:00:30]} Qc7 {[%emt 0:03:12]} 16. Nh5 {[%emt 0:00:30]} c5 {[%emt 0:09:53]} 17. dxc5 {[%emt 0:00:30]} Qxc5 {[%emt 0:04:09]} 18. Nxf6+ {[%emt 0:00:30]} Bxf6 {[%emt 0:00:44]} 19. g3 {[%emt 0:00:30]} Rfd8 {[%emt 0:04:51]} 20. h4 {[%emt 0:00:30]} Rd7 {[%emt 0:04:21]} 21. h5 {[%emt 0:00:30]} Ne7 {[%emt 0:06:15]} 22. Bf4 {[%emt 0:00:30]} e5 {[%emt 0:07:18]} 23. Bc1 {[%emt 0:00:30]} Rcd8 {[%emt 0:05:20]} 24. Be4 {[%emt 0:00:30]} Qb5 {[%emt 0:00:30]} 25. h6 {[%emt 0:00:30]} b6 {[%emt 0:04:48]} 26. Kg2 {[%emt 0:00:30]} Rd6 {[%emt 0:00:26]} 27. hxg7 {[%emt 0:00:30]} Bxg7 {[%emt 0:00:22]} 28. Bg5 {[%emt 0:00:30]} Qd7 {[%emt 0:01:59]} 29. Rh1 {[%emt 0:00:30]} h6 {[%emt 0:00:12]} 30. Bxe7 {[%emt 0:00:30]} Qxe7 {[%emt 0:00:07]} 31. Qg4 {[%emt 0:00:30]} Qg5 {[%emt 0:00:51]} 1/2-1/2

[Event "Lueneburg Open-A 2019"]
[Site "Lueneburg"]
[Date "2019.08.07"]
[Round "5.33"]
[White "Wunderlich, Matthias"]
[Black "Wozny, Michael"]
[Result "1/2-1/2"]
[ECO "A00"]
[WhiteElo "1792"]
[BlackElo "1942"]
[Annotator "NA"]
[PlyCount "89"]
[EventDate "2019.08.03"]
[EventType "swiss"]
[EventCountry "GER"]
[SourceTitle "playchess.com"]
[Source "ChessBase"]
[SourceQuality "1"]
[TimeControl "40/5400+30:1800+30"]

1. Nc3 {[%emt 0:00:00]} d5 {[%emt 0:00:11]} 2. e4 {[%emt 0:00:00]} dxe4 {[%emt 0:00:25]} 3. Nxe4 {[%emt 0:00:02]} Nf6 {[%emt 0:00:14]} 4. Ng3 {[%emt 0:01:19]} Nc6 {[%emt 0:01:13]} 5. Nf3 {[%emt 0:01:33]} g6 {[%emt 0:00:25]} 6. Bc4 {[%emt 0:01:44]} Bg7 {[%emt 0:00:19]} 7. O-O {[%emt 0:01:08]} O-O {[%emt 0:00:16]} 8. d4 {[%emt 0:03:12]} Bg4 {[%emt 0:00:24]} 9. c3 {[%emt 0:01:20]} e5 {[%emt 0:01:39]} 10. Be2 {[%emt 0:12:40]} Bxf3 {[%emt 0:05:37]} 11. Bxf3 {[%emt 0:00:20]} exd4 {[%emt 0:00:11]} 12. Bxc6 {[%emt 0:05:03]} bxc6 {[%emt 0:00:50]} 13. cxd4 {[%emt 0:00:14]} Nd5 {[%emt 0:00:56]} 14. Ne2 {[%emt 0:08:02]} Qd7 {[%emt 0:01:14]} 15. b3 {[%emt 0:07:44]} Rfe8 {[%emt 0:00:14]} 16. Ba3 {[%emt 0:05:37]} Re4 {[%emt 0:00:35]} 17. Bc5 {[%emt 0:02:55]} h5 {[%emt 0:06:20]} 18. Qc2 {[%emt 0:01:32]} Re6 {[%emt 0:01:01]} 19. Nc3 {[%emt 0:06:44]} Bf8 {[%emt 0:07:41]} 20. Na4 {[%emt 0:02:35]} Bd6 {[%emt 0:02:02]} 21. Rac1 {[%emt 0:00:57]} Bf4 {[%emt 0:07:44]} 22. Rce1 {[%emt 0:01:11]} Nb6 {[%emt 0:11:19]} 23. Nb2 {[%emt 0:02:13]} Rae8 {[%emt 0:00:30]} 24. Rxe6 {[%emt 0:00:33]} Rxe6 {[%emt 0:02:10]} 25. Nd3 {[%emt 0:01:41]} Bd6 {[%emt 0:01:10]} 26. Qd2 {[%emt 0:06:32]} Rf6 {[%emt 0:03:28]} 27. Re1 {[%emt 0:02:19]} Kg7 {[%emt 0:03:02]} 28. Qg5 {[%emt 0:04:01]} Rf5 {[%emt 0:01:30]} 29. Qe3 {[%emt 0:03:40]} Nd5 {[%emt 0:10:25]} 30. Qc1 {[%emt 0:02:33]} Nf4 {[%emt 0:03:58]} 31. Nxf4 {[%emt 0:01:05]} Rxf4 {[%emt 0:06:37]} 32. Bxa7 {[%emt 0:04:56]} Qf5 {[%emt 0:01:06]} 33. Qe3 {[%emt 0:00:44]} Rh4 {[%emt 0:07:44]} 34. h3 {[%emt 0:01:53]} Bf4 {[%emt 0:01:33]} 35. Qc3 {[%emt 0:01:04]} Bg5 {[%emt 0:08:14]} 36. Bc5 {[%emt 0:02:49]} Bf6 {[%emt 0:00:40]} 37. Qe3 {[%emt 0:03:32]} Qd5 {[%emt 0:02:08]} 38. Qg3 {[%emt 0:00:52]} Qd8 {[%emt 0:01:21]} 39. Qe3 {[%emt 0:00:55]} Bg5 {[%emt 0:00:38]} 40. Qe2 {[%emt 0:01:45]} Bf6 {[%emt 0:00:40]} 41. Be7 {[%emt 0:03:22]} Qxd4 {[%emt 0:02:03]} 42. Bxf6+ {[%emt 0:02:15]} Qxf6 {[%emt 0:00:19]} 43. Qe5 {[%emt 0:01:17]} Rd4 {[%emt 0:31:24]} 44. Qxc7 {[%emt 0:26:07]} Rd2 {[%emt 0:00:30]} 45. Qa7 {[%emt 0:00:30]} 1/2-1/2

[Event "Lueneburg Open-A 2019"]
[Site "Lueneburg"]
[Date "2019.08.07"]
[Round "5.34"]
[White "Berres, Eric"]
[Black "Fischer, Thomas"]
[Result "1-0"]
[ECO "A10"]
[WhiteElo "1890"]
[BlackElo "2106"]
[Annotator "ChessBase"]
[PlyCount "111"]
[EventDate "2019.08.03"]
[EventType "swiss"]
[EventCountry "GER"]
[SourceTitle "playchess.com"]
[Source "ChessBase"]
[SourceQuality "1"]
[TimeControl "40/5400+30:1800+30"]

1. c4 {[%emt 0:00:00]} f5 {[%emt 0:00:10]} 2. b3 {[%emt 0:00:03]} Nf6 {[%emt 0:00:11]} 3. Bb2 {[%emt 0:00:07]} g6 {[%emt 0:00:29]} 4. Bxf6 {[%emt 0:00:19]} exf6 {[%emt 0:00:03]} 5. e3 {[%emt 0:00:59]} b6 {[%emt 0:02:53]} 6. Be2 {[%emt 0:01:11]} Qe7 {[%emt 0:03:39]} 7. Bf3 {[%emt 0:08:07]} c6 {[%emt 0:01:05]} 8. Ne2 {[%emt 0:02:59]} Na6 {[%emt 0:04:13]} 9. d4 {[%emt 0:02:25]} Bh6 {[%emt 0:03:15]} 10. Nbc3 {[%emt 0:08:05]} Bb7 {[%emt 0:07:50]} 11. a3 {[%emt 0:12:11]} O-O {[%emt 0:05:20]} 12. O-O {[%emt 0:07:40]} d6 {[%emt 0:04:59]} 13. d5 {[%emt 0:08:07]} c5 {[%emt 0:00:45]} 14. Nf4 {[%emt 0:00:11]} Nc7 {[%emt 0:06:46]} 15. Qd3 {[%emt 0:06:13]} a6 {[%emt 0:02:04]} 16. Rad1 {[%emt 0:02:03]} Rfb8 {[%emt 0:00:54]} 17. Ne6 {[%emt 0:04:31]} Bc8 {[%emt 0:02:43]} 18. Ne2 {[%emt 0:03:05]} Ra7 {[%emt 0:05:15]} 19. N2f4 {[%emt 0:00:52]} b5 {[%emt 0:03:23]} 20. Be2 {[%emt 0:06:27]} Ne8 {[%emt 0:03:25]} 21. h4 {[%emt 0:02:08]} Rab7 {[%emt 0:06:33]} 22. Rb1 {[%emt 0:00:57]} Bd7 {[%emt 0:01:41]} 23. g4 {[%emt 0:07:18]} bxc4 {[%emt 0:03:33]} 24. bxc4 {[%emt 0:00:07]} Rxb1 {[%emt 0:00:26]} 25. Rxb1 {[%emt 0:00:04]} Rxb1+ {[%emt 0:00:07]} 26. Qxb1 {[%emt 0:00:04]} Bxf4 {[%emt 0:00:20]} 27. Nxf4 {[%emt 0:01:04]} fxg4 {[%emt 0:00:55]} 28. Qb7 {[%emt 0:02:19]} g3 {[%emt 0:10:16]} 29. h5 {[%emt 0:04:36]} Kf7 {[%emt 0:04:12]} 30. Ne6 {[%emt 0:00:55]} gxf2+ {[%emt 0:00:46]} 31. Kxf2 {[%emt 0:00:03]} f5 {[%emt 0:02:09]} 32. Bf3 {[%emt 0:03:14]} Nf6 {[%emt 0:02:51]} 33. h6 {[%emt 0:02:00]} Bxe6 {[%emt 0:03:47]} 34. dxe6+ {[%emt 0:00:05]} Kxe6 {[%emt 0:00:16]} 35. Bd5+ {[%emt 0:00:35]} Nxd5 {[%emt 0:00:20]} 36. cxd5+ {[%emt 0:00:17]} Kf6 {[%emt 0:00:19]} 37. Qxa6 {[%emt 0:00:51]} Qe5 {[%emt 0:01:38]} 38. Qb7 {[%emt 0:00:29]} Qh2+ {[%emt 0:01:19]} 39. Kf3 {[%emt 0:00:08]} Qxh6 {[%emt 0:02:18]} 40. Qb2+ {[%emt 0:02:37]} Kf7 {[%emt 0:02:13]} 41. Qb7+ {[%emt 0:30:45]} Kg8 {[%emt 0:32:39]} 42. Qc8+ {[%emt 0:00:54]} Qf8 {[%emt 0:00:00]} 43. Qe6+ {[%emt 0:00:00]} Kg7 {[%emt 0:00:00]} 44. a4 {[%emt 0:00:00]} g5 {[%emt 0:00:00]} 45. a5 {[%emt 0:00:00]} f4 {[%emt 0:00:00]} 46. e4 {[%emt 0:00:00]} Qd8 {[%emt 0:03:12]} 47. a6 {[%emt 0:00:00]} Qc7 {[%emt 0:00:37]} 48. Kg4 {[%emt 0:00:00]} h6 {[%emt 0:01:13]} 49. Kf5 {[%emt 0:00:00]} f3 {[%emt 0:00:03]} 50. Qf6+ {[%emt 0:00:00]} Kg8 {[%emt 0:00:17]} 51. Qg6+ {[%emt 0:00:00]} Kh8 {[%emt 0:01:23]} 52. Qxh6+ {[%emt 0:00:00]} Kg8 {[%emt 0:00:40]} 53. Qg6+ {[%emt 0:00:00]} Kf8 {[%emt 0:00:11]} 54. Qf6+ {[%emt 0:00:00]} Ke8 {[%emt 0:00:39]} 55. a7 {[%emt 0:00:00]} Qxa7 {[%emt 0:00:44]} 56. Qh8+ {[%emt 0:00:00]} 1-0

[Event "Lueneburg Open-A 2019"]
[Site "Lueneburg"]
[Date "2019.08.07"]
[Round "5.35"]
[White "Wirries, Frank-Michael"]
[Black "Prasse, Philipp"]
[Result "0-1"]
[ECO "B13"]
[WhiteElo "1858"]
[BlackElo "2003"]
[Annotator "NA"]
[PlyCount "40"]
[EventDate "2019.08.03"]
[EventType "swiss"]
[EventCountry "GER"]
[SourceTitle "playchess.com"]
[Source "ChessBase"]
[SourceQuality "1"]
[TimeControl "40/5400+30:1800+30"]

1. e4 {[%emt 0:00:00]} c6 {[%emt 0:00:00]} 2. d4 {[%emt 0:00:00]} d5 {[%emt 0:00:00]} 3. exd5 {[%emt 0:00:00]} cxd5 {[%emt 0:00:00]} 4. c4 {[%emt 0:00:06]} Nf6 {[%emt 0:00:09]} 5. Nc3 {[%emt 0:00:09]} Nc6 {[%emt 0:00:09]} 6. Bg5 {[%emt 0:03:13]} Ne4 {[%emt 0:10:34]} 7. Bf4 {[%emt 0:09:12]} e6 {[%emt 0:05:31]} 8. Nf3 {[%emt 0:05:07]} Bb4 {[%emt 0:02:37]} 9. Qc2 {[%emt 0:08:41]} Qa5 {[%emt 0:03:31]} 10. Bd2 {[%emt 0:05:35]} Nxd2 {[%emt 0:00:46]} 11. Qxd2 {[%emt 0:00:14]} O-O {[%emt 0:01:24]} 12. Bd3 {[%emt 0:05:01]} e5 {[%emt 0:10:10]} 13. cxd5 {[%emt 0:19:57]} exd4 {[%emt 0:07:37]} 14. O-O {[%emt 0:00:57]} dxc3 {[%emt 0:01:38]} 15. Qg5 {[%emt 0:00:06]} Be7 {[%emt 0:14:02]} 16. b4 {[%emt 0:17:56]} Bxg5 {[%emt 0:08:09]} 17. bxa5 {[%emt 0:00:17]} Nb4 {[%emt 0:00:30]} 18. Bb5 {[%emt 0:05:36]} Bf6 {[%emt 0:01:50]} 19. d6 {[%emt 0:01:14]} Rd8 {[%emt 0:03:41]} 20. Rfe1 {[%emt 0:03:02]} Nc2 {[%emt 0:04:38]} 0-1